bitfinex/quotes_BTCUSD_20241022
["timestamp","ask_amount","ask_price","bid_price","bid_amount"]
[1729618842573,0.19046901,67403.0,67400.0,0.148366]
[1729618843012,0.19046901,67403.0,67397.0,0.22361542]
[1729618843230,0.00075765,67399.0,67398.0,0.148372]
[1729618843680,0.01099041,67399.0,67398.0,0.31769354]
[1729618843911,0.00075765,67399.0,67398.0,0.31769354]
[1729618844357,0.01094411,67399.0,67398.0,0.31769354]
[1729618844579,0.00075765,67399.0,67398.0,0.31769354]
[1729618844824,0.01096469,67399.0,67398.0,0.31769354]
[1729618845054,0.00075765,67394.0,67393.0,0.29771517]
[1729618845292,0.00075765,67394.0,67393.0,0.44609617]
[1729618845748,0.00075765,67394.0,67393.0,0.61541771]
[1729618845974,0.00075765,67396.0,67395.0,0.14932917]
[1729618846202,0.00075765,67396.0,67395.0,0.31865071]
[1729618848219,0.001,67398.0,67397.0,0.14932517]
[1729618848655,0.00175765,67398.0,67397.0,0.14932517]
[1729618849521,0.00175765,67398.0,67397.0,0.15032517]
[1729618850424,0.01202761,67398.0,67397.0,0.15132517]
[1729618850674,0.00175765,67398.0,67397.0,0.15132517]
[1729618850897,0.01202761,67398.0,67397.0,0.15132517]
[1729618851165,0.00175765,67398.0,67397.0,0.15132517]
[1729618851390,0.01202761,67398.0,67397.0,0.15132517]
[1729618851608,0.00175765,67398.0,67397.0,0.15132517]
[1729618852260,0.01202761,67398.0,67397.0,0.15132517]
[1729618852481,0.00175765,67398.0,67397.0,0.15132517]
[1729618852924,0.01202171,67398.0,67397.0,0.15132517]
[1729618853159,0.00175765,67398.0,67397.0,0.15132517]
[1729618853382,0.01202171,67398.0,67397.0,0.15132517]
[1729618853602,0.00175765,67398.0,67397.0,0.15132517]
[1729618853836,0.01202171,67398.0,67397.0,0.15132517]
[1729618854059,0.00175765,67398.0,67397.0,0.15132517]
[1729618854294,0.01202171,67398.0,67397.0,0.15132517]
[1729618854770,0.01202171,67398.0,67397.0,0.002]
[1729618854771,0.00175765,67398.0,67397.0,0.002]
[1729618855041,0.39016057,67398.0,67397.0,0.002]
[1729618855260,4.91628371,67398.0,67397.0,0.002]
[1729618855474,4.91628371,67398.0,67397.0,0.001]
[1729618855928,4.91728371,67398.0,67397.0,0.001]
[1729618856154,5.06624286,67398.0,67397.0,0.001]
[1729618856384,0.31856065,67384.0,67383.0,0.00095117]
[1729618856605,0.00075765,67376.0,67375.0,0.14937417]
[1729618858154,0.00075765,67376.0,67375.0,0.15037417]
[1729618858403,0.00075765,67376.0,67375.0,0.149423]
[1729618858634,0.14917765,67376.0,67375.0,0.001]
[1729618858853,0.01087395,67376.0,67375.0,0.001]
[1729618859074,0.01087395,67376.0,67375.0,0.002]
[1729618859544,0.15929395,67376.0,67375.0,0.002]
[1729618859773,0.15929395,67376.0,67375.0,0.001]
[1729618860228,0.16329395,67376.0,67375.0,0.001]
[1729618860462,0.01487395,67376.0,67375.0,0.001]
[1729618860686,0.01487395,67376.0,67372.0,0.148429]
[1729618860926,0.46013895,67376.0,67375.0,0.001]
[1729618861149,0.16329395,67376.0,67375.0,0.001]
[1729618861365,0.01487395,67376.0,67373.0,0.00095117]
[1729618861588,0.00075765,67374.0,67373.0,0.00095117]
[1729618862024,0.01082571,67374.0,67373.0,0.00095117]
[1729618862270,0.00075765,67374.0,67373.0,0.00095117]
[1729618862768,0.00075765,67374.0,67373.0,0.00195117]
[1729618862981,0.00075765,67374.0,67373.0,0.00095117]
[1729618863197,0.01084114,67374.0,67373.0,0.00095117]
[1729618863425,0.00075765,67374.0,67373.0,0.001]
[1729618863679,0.32826614,67374.0,67373.0,0.001]
[1729618863911,0.16975765,67374.0,67373.0,0.001]
[1729618864145,0.37500117,67374.0,67373.0,0.001]
[1729618864408,5.13659915,67374.0,67373.0,0.001]
[1729618864620,0.17835765,67356.0,67353.0,0.00095117]
[1729618864843,0.17835765,67356.0,67355.0,0.00095117]
[1729618865530,0.17835765,67356.0,67355.0,0.148467]
[1729618865755,0.17835765,67356.0,67355.0,0.14941817]
[1729618866198,0.1738,67366.0,67355.0,0.00095117]
[1729618866445,0.1738,67366.0,67357.0,0.14941317]
[1729618866446,0.00075765,67358.0,67357.0,0.14941317]
[1729618867826,0.00075765,67358.0,67357.0,0.00195117]
[1729618868052,0.00075765,67358.0,67357.0,0.15041317]
[1729618869186,0.00075765,67358.0,67357.0,0.00195117]
[1729618869644,0.00075765,67358.0,67357.0,0.15041317]
[1729618869884,0.00075765,67358.0,67357.0,0.149462]
[1729618870323,0.00075765,67358.0,67357.0,0.15041317]
[1729618870818,0.01064096,67358.0,67357.0,0.15041317]
[1729618871039,0.00075765,67358.0,67357.0,0.15041317]
[1729618872820,0.00075765,67358.0,67357.0,0.149462]
[1729618873076,0.00075765,67358.0,67357.0,0.15041317]
[1729618873292,0.00075765,67358.0,67357.0,0.00195117]
[1729618873525,0.00075765,67358.0,67357.0,0.15041317]
[1729618874435,0.01000931,67358.0,67357.0,0.15041317]
[1729618874650,0.00075765,67358.0,67357.0,0.001]
[1729618875101,0.00999095,67358.0,67357.0,0.001]
[1729618875317,0.00999095,67358.0,67357.0,0.00265]
[1729618875759,0.00075765,67358.0,67357.0,0.00265]
[1729618875979,0.00075765,67358.0,67357.0,0.151112]
[1729618876439,0.00075765,67358.0,67357.0,0.00265]
[1729618876659,0.00075765,67358.0,67357.0,0.151112]
[1729618877121,0.00075765,67358.0,67357.0,0.00265]
[1729618877339,0.19591617,67358.0,67357.0,0.00265]
[1729618877599,0.37765398,67358.0,67357.0,0.00265]
[1729618878316,0.22919398,67358.0,67357.0,0.00265]
[1729618878974,0.22919398,67358.0,67357.0,0.00165]
[1729618879187,0.22919398,67358.0,67357.0,0.00265]
[1729618879612,0.23619398,67358.0,67357.0,0.00265]
[1729618880057,0.24219398,67358.0,67357.0,0.00365]
[1729618881420,0.19549546,67358.0,67357.0,0.00365]
[1729618881660,0.02299546,67358.0,67357.0,0.152112]
[1729618882168,0.01375765,67358.0,67357.0,0.00365]
[1729618882658,0.01700153,67358.0,67357.0,0.00265]
[1729618882893,0.01000153,67358.0,67357.0,0.00265]
[1729618883134,0.01000153,67358.0,67357.0,0.00365]
[1729618883392,0.01000153,67358.0,67357.0,0.00165]
[1729618883604,3.01000153,67358.0,67357.0,0.00165]
[1729618884733,3.02300153,67358.0,67357.0,0.00365]
[1729618891286,3.02224388,67358.0,67357.0,0.32238471]
[1729618891498,3.02224388,67358.0,67357.0,0.47134386]
[1729618891720,3.02224388,67358.0,67357.0,0.30202232]
[1729618892156,3.01624388,67358.0,67357.0,0.30102232]
[1729618892374,3.01624388,67358.0,67357.0,0.30202232]
[1729618892593,3.00924388,67358.0,67357.0,0.30102232]
[1729618893027,3.00924388,67358.0,67357.0,0.30202232]
[1729618893248,3.00924388,67358.0,67357.0,0.30102232]
[1729618893471,3.00924388,67358.0,67357.0,0.47134386]
[1729618893750,3.00924388,67358.0,67357.0,0.47034386]
[1729618893973,3.00924388,67358.0,67357.0,0.47134386]
[1729618901764,3.00924388,67358.0,67357.0,0.74490775]
[1729618901982,3.00924388,67358.0,67357.0,0.66818621]
[1729618902228,3.0,67358.0,67357.0,0.66818621]
[1729618902698,3.00769042,67358.0,67357.0,0.66818621]
[1729618902921,3.00769042,67358.0,67357.0,0.66718621]
[1729618903145,3.00769042,67358.0,67357.0,0.66818621]
[1729618903790,3.00769042,67358.0,67357.0,0.66718621]
[1729618904028,3.00769042,67358.0,67357.0,0.66818621]
[1729618904239,3.00769042,67358.0,67357.0,0.67018621]
[1729618904493,3.00769042,67358.0,67357.0,0.66818621]
[1729618906018,3.0,67358.0,67357.0,0.66818621]
[1729618906451,3.00764339,67358.0,67357.0,0.66818621]
[1729618909792,3.00764339,67358.0,67357.0,0.67018621]
[1729618910268,3.0,67358.0,67357.0,0.66818621]
[1729618910504,3.0,67358.0,67357.0,0.67018621]
[1729618910762,3.00765798,67358.0,67357.0,0.66818621]
[1729618913212,3.00765798,67358.0,67357.0,0.67018621]
[1729618913441,3.0,67358.0,67357.0,0.66818621]
[1729618915550,3.0,67358.0,67357.0,0.66318621]
[1729618915806,3.0,67358.0,67357.0,0.66518621]
[1729618917000,3.0,67358.0,67357.0,0.58258621]
[1729618918403,3.0,67358.0,67357.0,0.58758621]
[1729618919091,3.0,67358.0,67357.0,0.75690775]
[1729618919613,2.48482494,67358.0,67357.0,0.91060775]
[1729618921365,2.48482494,67358.0,67357.0,0.97637222]
[1729618921618,2.48482494,67358.0,67357.0,0.90960775]
[1729618921902,2.48482494,67358.0,67357.0,0.66428621]
[1729618922323,2.49132276,67358.0,67357.0,0.58758621]
[1729618922777,2.49132276,67358.0,67357.0,0.58658621]
[1729618923011,2.48482494,67358.0,67357.0,0.58758621]
[1729618923540,2.48482494,67358.0,67357.0,0.58558621]
[1729618923758,2.48482494,67358.0,67357.0,0.58758621]
[1729618923976,2.48482494,67358.0,67357.0,0.57363504]
[1729618924214,2.49133382,67358.0,67357.0,0.58558621]
[1729618924459,2.49133382,67358.0,67357.0,0.75490775]
[1729618924685,2.49133382,67358.0,67357.0,0.77790775]
[1729618924939,2.49133382,67358.0,67357.0,1.284487]
[1729618924940,1.82769876,67358.0,67357.0,1.284487]
[1729618925170,1.82118988,67358.0,67357.0,1.12757435]
[1729618925392,1.82780462,67358.0,67357.0,1.06182275]
[1729618925611,1.79811262,67358.0,67357.0,1.12752462]
[1729618925834,1.67934462,67358.0,67357.0,1.06182275]
[1729618926296,1.67934462,67358.0,67357.0,0.68618621]
[1729618926526,1.67934462,67358.0,67357.0,0.61058621]
[1729618926747,1.67934462,67358.0,67357.0,0.77990775]
[1729618926969,1.67272988,67358.0,67357.0,0.77990775]
[1729618927473,1.6793512,67358.0,67357.0,0.77990775]
[1729618928145,1.6793512,67358.0,67357.0,0.61058621]
[1729618930008,1.67272988,67358.0,67357.0,0.61058621]
[1729618930230,1.67272988,67358.0,67357.0,0.65438988]
[1729618930422,1.67934836,67358.0,67357.0,0.65438988]
[1729618930666,1.67934836,67358.0,67357.0,0.61058621]
[1729618930882,1.67934836,67358.0,67357.0,0.65438265]
[1729618931125,1.67934836,67358.0,67357.0,0.65438327]
[1729618931584,1.67934836,67358.0,67357.0,0.61058621]
[1729618932007,1.67272988,67358.0,67357.0,0.61058621]
[1729618934629,1.67355588,67358.0,67357.0,0.61058621]
[1729618935672,1.67355588,67358.0,67357.0,0.69818034]
[1729618935923,1.67355588,67358.0,67357.0,0.69819392]
[1729618936156,1.67355588,67358.0,67357.0,0.61058621]
[1729618936387,1.67355588,67358.0,67357.0,0.72007887]
[1729618937537,1.67355588,67358.0,67357.0,0.61058621]
[1729618937774,1.67355588,67358.0,67357.0,0.72011399]
[1729618937999,1.67355588,67358.0,67357.0,0.61058621]
[1729618938441,1.67355588,67358.0,67357.0,0.72011468]
[1729618938862,1.67355588,67358.0,67357.0,0.61058621]
[1729618939056,1.67355588,67358.0,67357.0,0.72011468]
[1729618939284,1.67355588,67358.0,67357.0,0.61058621]
[1729618940377,3.01709388,67358.0,67357.0,0.61058621]
[1729618941692,3.01709388,67358.0,67357.0,0.72015657]
[1729618941921,3.01709388,67358.0,67357.0,0.61058621]
[1729618948052,2.95770988,67358.0,67357.0,0.61058621]
[1729618948282,2.92801788,67358.0,67357.0,0.61058621]
[1729618949565,2.69048188,67358.0,67357.0,0.61058621]
[1729618949775,2.63109788,67358.0,67357.0,0.61058621]
[1729618950727,2.48263788,67358.0,67357.0,0.61058621]
[1729618950950,2.45036608,67358.0,67357.0,0.77990775]
[1729618951180,2.41995886,67358.0,67357.0,0.60858621]
[1729618951398,2.41995886,67358.0,67357.0,0.44126467]
[1729618952038,2.41995886,67358.0,67357.0,0.55089286]
[1729618952254,2.41995886,67358.0,67357.0,0.54957779]
[1729618952882,2.41995886,67358.0,67357.0,0.63729394]
[1729618953103,2.41995886,67358.0,67357.0,0.52898082]
[1729618953313,2.41995886,67358.0,67357.0,0.51802965]
[1729618953538,2.41995886,67358.0,67357.0,0.53862662]
[1729618953758,2.41995886,67358.0,67357.0,0.63730273]
[1729618954029,2.41995886,67358.0,67357.0,0.54757779]
[1729618954247,2.41995886,67358.0,67357.0,0.52698961]
[1729618954477,2.41995886,67358.0,67357.0,0.43926467]
[1729618955316,2.41995886,67358.0,67357.0,0.5269942]
[1729618955550,2.41995886,67358.0,67357.0,0.52699466]
[1729618955754,2.41995886,67358.0,67357.0,0.43926467]
[1729618956593,2.41995886,67358.0,67357.0,0.50401123]
[1729618956808,2.41995886,67358.0,67357.0,0.48208327]
[1729618957042,2.59238018,67358.0,67357.0,0.40202232]
[1729618957914,2.59238018,67358.0,67357.0,0.40102232]
[1729618958384,2.59238018,67358.0,67357.0,0.40202232]
[1729618958588,2.59238018,67358.0,67357.0,0.40002232]
[1729618958810,2.59238018,67358.0,67357.0,0.40102232]
[1729618959022,2.59238018,67358.0,67357.0,0.40702232]
[1729618959243,2.59166393,67358.0,67357.0,0.40702232]
[1729618959467,2.59166393,67358.0,67357.0,0.40602232]
[1729618959702,2.59166393,67358.0,67357.0,0.41526467]
[1729618959923,2.50926393,67358.0,67357.0,0.41726467]
[1729618960150,2.41906393,67358.0,67357.0,0.44026467]
[1729618960629,2.41906393,67358.0,67357.0,0.55092293]
[1729618960854,2.41906393,67358.0,67357.0,0.44026467]
[1729618962373,2.41906393,67358.0,67357.0,0.43926467]
[1729618962590,2.38937193,67358.0,67357.0,0.74014393]
[1729618962803,2.27060393,67358.0,67357.0,0.60955402]
[1729618963023,2.24431703,67358.0,67357.0,0.76286902]
[1729618963222,2.24431703,67358.0,67357.0,0.89545893]
[1729618963432,1.69902197,67358.0,67357.0,0.84516902]
[1729618963643,1.58025397,67358.0,67357.0,0.84416902]
[1729618963863,1.55056197,67358.0,67357.0,0.84516902]
[1729618964712,1.43179397,67358.0,67357.0,0.84416902]
[1729618965137,1.40210197,67358.0,67357.0,0.84516902]
[1729618965365,1.38223102,67358.0,67357.0,0.84516902]
[1729618965629,1.23377102,67358.0,67357.0,0.84616902]
[1729618966545,1.20407902,67358.0,67357.0,0.84416902]
[1729618966754,1.11500302,67358.0,67357.0,0.97674362]
[1729618966996,1.08531102,67358.0,67357.0,0.97774362]
[1729618967208,1.08531102,67358.0,67357.0,0.84216902]
[1729618967427,1.08531102,67358.0,67357.0,0.67387967]
[1729618967630,0.96654302,67358.0,67357.0,0.67487967]
[1729618967904,0.93685102,67358.0,67357.0,0.67487967]
[1729618968132,0.93685102,67358.0,67357.0,0.67587967]
[1729618968556,0.93685102,67358.0,67357.0,0.67687967]
[1729618968759,0.90715902,67358.0,67357.0,0.67687967]
[1729618969010,0.81808302,67358.0,67357.0,0.67687967]
[1729618969218,0.78921702,67358.0,67357.0,0.67587967]
[1729618969390,0.78921702,67358.0,67357.0,0.59457967]
[1729618969669,0.70014102,67358.0,67357.0,0.72609555]
[1729618969879,0.64075702,67358.0,67357.0,0.59457967]
[1729618970095,0.64075702,67358.0,67357.0,0.57157967]
[1729618970962,0.64075702,67358.0,67357.0,0.57057967]
[1729618971383,0.64075702,67358.0,67357.0,0.59357967]
[1729618971560,0.64075702,67358.0,67357.0,0.59457967]
[1729618971692,0.64075702,67358.0,67357.0,0.5836285]
[1729618972154,0.64075702,67358.0,67357.0,0.59357967]
[1729618972375,0.64075702,67358.0,67357.0,0.59457967]
[1729618975533,0.64075702,67358.0,67357.0,0.55091853]
[1729618975801,0.64075702,67358.0,67357.0,0.44126467]
[1729618978724,0.64075702,67358.0,67357.0,0.55091853]
[1729618979154,0.64075702,67358.0,67357.0,0.44126467]
[1729618980459,0.64075702,67358.0,67357.0,0.66392892]
[1729618980675,0.64075702,67358.0,67357.0,0.5728547]
[1729618981603,0.64075702,67358.0,67357.0,0.44126467]
[1729618982254,0.64075702,67358.0,67357.0,0.59457967]
[1729618982477,0.64075702,67358.0,67357.0,0.44126467]
[1729618982714,0.64075702,67358.0,67357.0,0.549846]
[1729618982928,0.72075702,67358.0,67357.0,0.41826467]
[1729618983137,0.72075702,67358.0,67357.0,0.58755402]
[1729618984429,0.72075702,67358.0,67357.0,0.57660285]
[1729618984845,0.72075702,67358.0,67357.0,0.58755402]
[1729618985507,0.72075702,67358.0,67357.0,0.58555402]
[1729618986380,0.72075702,67358.0,67357.0,0.52457525]
[1729618986601,0.68734924,67358.0,67357.0,0.52657525]
[1729618987275,0.68734924,67358.0,67357.0,0.41626467]
[1729618987511,0.68734924,67358.0,67357.0,0.52594314]
[1729618987747,0.68734924,67358.0,67357.0,0.41626467]
[1729618988215,0.68734924,67358.0,67357.0,0.41526467]
[1729618988450,0.68734924,67358.0,67357.0,0.41626467]
[1729618988692,0.78084924,67358.0,67357.0,0.41526467]
[1729618989164,0.78084924,67358.0,67357.0,0.5030103]
[1729618989384,0.78084924,67358.0,67357.0,0.5040103]
[1729618989631,0.78084924,67358.0,67357.0,0.41626467]
[1729618989851,0.78084924,67358.0,67357.0,0.5040103]
[1729618990079,0.78084924,67358.0,67357.0,0.41626467]
[1729618990316,0.78084924,67358.0,67357.0,0.41426467]
[1729618990539,0.78084924,67358.0,67357.0,0.41526467]
[1729618990760,0.78084924,67358.0,67357.0,0.41626467]
[1729618990973,0.78084924,67358.0,67357.0,0.5040103]
[1729618991454,0.78084924,67358.0,67357.0,0.41626467]
[1729618994333,0.78084924,67358.0,67357.0,0.40202232]
[1729618994965,0.78084924,67358.0,67357.0,0.25356032]
[1729618995186,0.78084924,67358.0,67357.0,0.15356032]
[1729618996020,0.78084924,67358.0,67357.0,0.15256032]
[1729618996271,0.78084924,67358.0,67357.0,0.30002232]
[1729618996485,0.78084924,67358.0,67357.0,0.30102232]
[1729618996716,0.78084924,67358.0,67357.0,0.15356032]
[1729618996936,0.78084924,67358.0,67352.0,0.00095117]
[1729618996937,0.00075765,67353.0,67352.0,0.00095117]
[1729618997164,0.00075765,67353.0,67351.0,0.00165]
[1729618997165,0.00075765,67352.0,67351.0,0.00165]
[1729618997374,0.00075765,67352.0,67351.0,0.15060915]
[1729618997375,0.18135765,67352.0,67351.0,0.15060915]
[1729618997595,0.18135765,67352.0,67351.0,0.15156032]
[1729618997816,0.18135765,67352.0,67351.0,0.15060915]
[1729618998242,0.35077324,67352.0,67351.0,0.15160915]
[1729618998455,0.35077324,67352.0,67351.0,0.00265]
[1729618998677,0.17017324,67352.0,67351.0,0.001]
[1729618998901,0.17017324,67352.0,67347.0,0.22266425]
[1729618999113,0.16941559,67348.0,67347.0,0.22361542]
[1729618999349,0.34171559,67348.0,67347.0,0.37209942]
[1729618999574,0.1723,67348.0,67347.0,0.14943517]
[1729619000013,0.1723,67348.0,67347.0,0.00095117]
[1729619000455,0.1723,67348.0,67347.0,0.15043517]
[1729619001151,0.1723,67348.0,67347.0,0.00195117]
[1729619001398,0.1723,67348.0,67347.0,0.00295117]
[1729619001615,0.1723,67348.0,67347.0,0.15143517]
[1729619002728,0.1723,67348.0,67347.0,0.15308717]
[1729619003680,0.1723,67348.0,67347.0,0.00460317]
[1729619004133,0.1723,67348.0,67347.0,0.15308717]
[1729619006119,0.1723,67348.0,67347.0,0.30204632]
[1729619024012,0.1723,67348.0,67347.0,0.15356232]
[1729619025333,0.1723,67348.0,67347.0,0.15256232]
[1729619025926,0.1723,67348.0,67347.0,0.15356232]
[1729619026339,0.000826,67351.0,67350.0,0.26567152]
[1729619026735,0.000826,67351.0,67350.0,0.52598503]
[1729619026953,0.000826,67351.0,67350.0,0.54601599]
[1729619027600,0.000826,67351.0,67350.0,0.54801599]
[1729619028030,0.000826,67351.0,67350.0,0.54701599]
[1729619028444,0.000826,67351.0,67350.0,0.54801599]
[1729619028651,0.000826,67351.0,67350.0,0.54701599]
[1729619028934,0.000826,67351.0,67350.0,0.54801599]
[1729619029373,0.000826,67351.0,67350.0,0.54701599]
[1729619029613,0.000826,67351.0,67350.0,0.54801599]
[1729619029823,0.000826,67351.0,67350.0,0.54701599]
[1729619030029,0.000826,67351.0,67350.0,0.54801599]
[1729619030736,0.000826,67351.0,67350.0,0.54701599]
[1729619030949,0.000826,67351.0,67350.0,0.54601599]
[1729619033326,0.000826,67351.0,67350.0,0.41463067]
[1729619035950,0.000826,67351.0,67350.0,0.41363067]
[1729619036167,0.000826,67351.0,67350.0,0.41463067]
[1729619036397,0.000826,67351.0,67350.0,0.41363067]
[1729619036627,0.000826,67351.0,67350.0,0.41263067]
[1729619036859,0.000826,67351.0,67350.0,0.41363067]
[1729619037139,0.000826,67351.0,67350.0,0.41463067]
[1729619038729,0.000826,67351.0,67350.0,0.41263067]
[1729619038963,0.000826,67351.0,67350.0,0.41363067]
[1729619039177,0.000826,67351.0,67350.0,0.41628267]
[1729619039396,0.000826,67351.0,67350.0,0.41528267]
[1729619039808,0.000826,67351.0,67350.0,0.41628267]
[1729619045751,0.000826,67351.0,67350.0,0.41828267]
[1729619045988,0.000826,67351.0,67350.0,0.50705469]
[1729619046208,0.000826,67351.0,67350.0,0.5269787]
[1729619046422,0.000826,67351.0,67350.0,0.48309941]
[1729619046662,0.000826,67351.0,67350.0,0.48209941]
[1729619046879,0.000826,67351.0,67350.0,0.48109941]
[1729619047095,0.000826,67351.0,67350.0,0.48209941]
[1729619047339,0.000826,67351.0,67350.0,0.48309941]
[1729619047552,0.000826,67351.0,67350.0,0.48209941]
[1729619048204,0.000826,67351.0,67350.0,0.48109941]
[1729619048423,0.000826,67351.0,67350.0,0.45809941]
[1729619048646,0.000826,67351.0,67350.0,0.41528267]
[1729619049075,0.000826,67351.0,67350.0,0.41728267]
[1729619049307,0.000826,67351.0,67350.0,0.41528267]
[1729619050710,0.16713835,67356.0,67355.0,0.14941817]
[1729619050922,0.16713835,67356.0,67355.0,0.39837732]
[1729619051846,0.16587102,67356.0,67355.0,0.39837732]
[1729619052294,0.16587102,67356.0,67355.0,0.39937732]
[1729619056529,0.16587102,67356.0,67355.0,0.50771639]
[1729619057187,0.08927102,67356.0,67355.0,0.62204157]
[1729619057428,0.08927102,67356.0,67355.0,0.39937732]
[1729619062245,0.08927102,67356.0,67355.0,0.62204157]
[1729619062480,0.0811,67359.0,67355.0,0.62204157]
[1729619062481,0.0811,67359.0,67357.0,0.248462]
[1729619062714,0.0811,67359.0,67357.0,0.50576022]
[1729619063073,0.0811,67359.0,67357.0,0.50671139]
[1729619063548,0.0811,67359.0,67357.0,0.39837232]
[1729619063787,0.0811,67359.0,67357.0,0.39937232]
[1729619066670,0.0811,67359.0,67357.0,0.44329137]
[1729619070382,0.0811,67359.0,67357.0,0.39937232]
[1729619070595,0.0811,67359.0,67357.0,0.50771139]
[1729619073329,0.0966,67366.0,67357.0,0.73537564]
[1729619073548,0.0966,67366.0,67357.0,0.51895374]
[1729619073782,0.0966,67366.0,67357.0,0.74461799]
[1729619073997,0.1786,67371.0,67357.0,0.54695374]
[1729619074220,0.1786,67371.0,67357.0,0.80786139]
[1729619074444,0.000825,67373.0,67357.0,0.80786139]
[1729619074445,0.000825,67373.0,67357.0,0.91521799]
[1729619074661,0.000825,67373.0,67357.0,0.69255374]
[1729619075094,0.000825,67373.0,67357.0,0.80089281]
[1729619075749,0.000825,67373.0,67357.0,0.79989281]
[1729619076419,0.000825,67373.0,67357.0,0.69155374]
[1729619076636,0.000825,67373.0,67357.0,0.52295374]
[1729619076637,0.169,67364.0,67357.0,0.52295374]
[1729619076852,0.169,67364.0,67357.0,0.63272451]
[1729619077082,0.169,67364.0,67357.0,0.60877903]
[1729619077971,0.169,67364.0,67357.0,0.61077903]
[1729619078185,0.169,67364.0,67357.0,0.60877903]
[1729619078451,0.169,67364.0,67357.0,0.63072451]
[1729619078657,0.169,67364.0,67357.0,0.52238544]
[1729619078870,0.169,67364.0,67357.0,0.52095374]
[1729619079297,0.169,67364.0,67357.0,0.52295374]
[1729619079970,0.169,67364.0,67357.0,0.40261467]
[1729619080437,0.169,67364.0,67357.0,0.31261467]
[1729619081848,0.169,67364.0,67357.0,0.41261467]
[1729619086036,0.169,67364.0,67357.0,0.39837232]
[1729619086241,0.77464924,67358.0,67357.0,0.39837232]
[1729619086442,0.77464924,67358.0,67357.0,0.50671139]
[1729619092963,3.77464924,67358.0,67357.0,0.50671139]
[1729619097272,3.60734924,67358.0,67357.0,0.5725739]
[1729619097479,3.60734924,67358.0,67357.0,0.57681625]
[1729619097692,3.60734924,67358.0,67357.0,0.5548549]
[1729619097874,3.60734924,67358.0,67357.0,0.51095374]
[1729619099441,3.60734924,67358.0,67357.0,0.50671139]
[1729619100113,3.60734924,67358.0,67357.0,0.51095374]
[1729619100575,3.60734924,67358.0,67357.0,0.50671139]
[1729619100792,3.60734924,67358.0,67357.0,0.51095374]
[1729619100999,3.70344924,67358.0,67357.0,0.39837232]
[1729619104544,3.78184924,67358.0,67357.0,0.39837232]
[1729619106712,3.78184924,67358.0,67356.0,0.29858]
[1729619106713,0.17535765,67357.0,67356.0,0.001652]
[1729619106936,0.28369672,67357.0,67356.0,0.001652]
[1729619107829,0.17535765,67357.0,67356.0,0.150116]
[1729619109011,0.17348127,67357.0,67356.0,0.150116]
[1729619109719,0.17348127,67357.0,67356.0,0.001652]
[1729619116276,0.17348127,67357.0,67356.0,0.150116]
[1729619118429,0.17348127,67357.0,67356.0,0.29907515]
[1729619119121,0.09828127,67357.0,67356.0,0.30002632]
[1729619119329,3.60734924,67358.0,67357.0,0.14941317]
[1729619119545,3.83001349,67358.0,67357.0,0.29837232]
[1729619119727,3.78084924,67358.0,67357.0,0.39837232]
[1729619120431,3.78084924,67358.0,67357.0,0.39742115]
[1729619120650,3.78084924,67358.0,67357.0,0.39837232]
[1729619127426,3.78084924,67358.0,67357.0,0.29837232]
[1729619132342,3.78084924,67358.0,67357.0,0.29742115]
[1729619132551,3.78084924,67358.0,67357.0,0.29837232]
[1729619133053,3.78084924,67358.0,67356.0,0.29858]
[1729619133054,3.88919875,67358.0,67356.0,0.001652]
[1729619133277,0.1695,67357.0,67356.0,0.001652]
[1729619133965,0.1695,67357.0,67356.0,0.150116]
[1729619134883,0.1695,67357.0,67356.0,0.29907515]
[1729619135574,0.1695,67357.0,67356.0,0.001652]
[1729619136013,0.170326,67357.0,67356.0,0.001652]
[1729619138595,0.43213751,67357.0,67356.0,0.001652]
[1729619138832,0.44118634,67357.0,67356.0,0.001652]
[1729619139067,0.48562228,67357.0,67356.0,0.001652]
[1729619139774,0.00404883,67351.0,67350.0,0.001652]
[1729619139991,0.29359834,67351.0,67350.0,0.001652]
[1729619141149,0.34963993,67351.0,67350.0,0.001652]
[1729619141380,0.50311493,67351.0,67350.0,0.001652]
[1729619141609,0.50811493,67351.0,67350.0,0.001652]
[1729619142047,0.36463993,67351.0,67350.0,0.001652]
[1729619142265,0.51311493,67351.0,67350.0,0.001652]
[1729619142494,0.16253083,67348.0,67342.0,0.22266425]
[1729619142713,0.68459195,67348.0,67342.0,0.22266425]
[1729619142978,0.8335511,67348.0,67342.0,0.22266425]
[1729619143199,0.8335511,67348.0,67323.0,0.297071]
[1729619143200,0.181,67336.0,67323.0,0.297071]
[1729619143468,0.099,67334.0,67331.0,0.148519]
[1729619143695,0.16953056,67333.0,67331.0,0.148519]
[1729619144367,0.16953056,67333.0,67330.0,0.148521]
[1729619144860,0.099,67334.0,67333.0,0.148515]
[1729619146697,0.099,67334.0,67329.0,0.148524]
[1729619146698,0.11750488,67334.0,67329.0,0.148524]
[1729619146939,0.099,67334.0,67329.0,0.148524]
[1729619147167,0.16953056,67333.0,67328.0,0.22266425]
[1729619147401,0.16953056,67333.0,67329.0,0.148523]
[1729619147637,0.16953056,67333.0,67328.0,0.22266425]
[1729619147875,0.16953056,67333.0,67330.0,0.148521]
[1729619150510,0.16953056,67333.0,67325.0,0.297065]
[1729619150718,0.16953056,67333.0,67329.0,0.148522]
[1729619150953,0.16953056,67333.0,67330.0,0.14852]
[1729619151330,0.099,67334.0,67330.0,0.14852]
[1729619152024,0.099,67334.0,67330.0,0.148521]
[1729619154131,0.099,67334.0,67330.0,0.146521]
[1729619154366,0.1706,67343.0,67342.0,0.148495]
[1729619154553,0.0797,67347.0,67346.0,0.148486]
[1729619154795,0.000826,67357.0,67356.0,0.148464]
[1729619155151,0.000826,67357.0,67356.0,0.29742315]
[1729619155355,0.000826,67357.0,67356.0,0.5200874]
[1729619155562,0.000826,67357.0,67356.0,0.39837432]
[1729619156582,0.000826,67357.0,67356.0,0.39742315]
[1729619156786,0.000826,67357.0,67356.0,0.39837432]
[1729619157429,0.14978515,67357.0,67352.0,0.296947]
[1729619157681,0.16953056,67353.0,67341.0,0.00095117]
[1729619157890,0.1722,67356.0,67351.0,0.22266425]
[1729619158028,0.01848722,67355.0,67347.0,0.296966]
[1729619158248,0.16953056,67350.0,67344.0,0.296978]
[1729619158423,0.16953056,67350.0,67346.0,0.296973]
[1729619158644,0.16953056,67350.0,67343.0,0.22266425]
[1729619158861,0.16953056,67350.0,67349.0,0.14848]
[1729619159275,0.16953056,67350.0,67344.0,0.445473]
[1729619159463,0.16953056,67350.0,67345.0,0.296978]
[1729619159662,0.16953056,67350.0,67349.0,0.14848]
[1729619159906,0.16953056,67354.0,67343.0,0.22266425]
[1729619160130,0.16953056,67354.0,67351.0,0.148475]
[1729619160762,0.01404883,67355.0,67352.0,0.148472]